Cogmind - Beta 9.1 @@@ ROGUE MODE // 2019.10.30 @ 20:23:19 Player: MrPainting Result: Self-destructed Performance ------------- Evolutions (1) 500 Regions Visited (3) 600 Robots Destroyed (15) 75 Value Destroyed (452) 452 Prototype IDs (2) 40 Alien Tech Used (0) 0 Bonus (200) 200 TOTAL SCORE: 1867 Bonus ------- Pacifist 200 Cogmind --------- Core Integrity 202/400 Matter 0/300 Energy 580/580 System Corruption 0% Temperature Cool (0) Location -9/Materials Parts ------- Power (1) Cooled Ion Engine Propulsion (3) Aluminum Leg Aluminum Leg Utility (3) Compact Battery Transport Network Coupler ECM Suite Weapon (2) Mini Grenade Launcher Inventory (4) Cooling System Compact Battery (84) Hacking Suite Assault Rifle Peak State ------------ Power Cooled Ion Engine Propulsion Aluminum Leg Aluminum Leg Utility Compact Battery Transport Network Coupler ECM Suite Weapon Improved Medium Laser Mini Grenade Launcher Inventory Improved Heat Sink Compact Battery Hacking Suite Assault Rifle [Rating: 16] Favorites ----------- Power Light Ion Engine Engine Light Ion Engine Propulsion Aluminum Leg Leg Aluminum Leg Hover Unit Improved Hover Unit Utility Transport Network Coupler Device ECM Suite Storage Compact Battery Processor Transport Network Coupler Protection Weapon Shielding Weapon Mini Grenade Launcher Energy Gun Improved Medium Laser Ballistic Gun Assault Rifle Launcher Mini Grenade Launcher Build | -11 -10 -10 -9 ------- Run | Scr Mat Min Mat Slots Evolved 2 | . . . 2 Power . | . . . . Propulsion 1 | . . . 1 Utility 1 | . . . 1 Weapon . | . . . . Parts Attached 15 | 1 . 6 8 Power 2 | 1 . . 1 Engine 2 | 1 . . 1 Core . | . . . . Reactor . | . . . . Propulsion 4 | . . 2 2 Treads . | . . . . Leg 3 | . . 2 1 Wheel . | . . . . Hover 1 | . . . 1 Flight . | . . . . Utility 5 | . . 2 3 Device 2 | . . 1 1 Storage 1 | . . . 1 Processor 1 | . . 1 . Hackware . | . . . . Protection 1 | . . . 1 Artifact . | . . . . Weapon 4 | . . 2 2 Energy Gun 1 | . . . 1 Energy Cannon . | . . . . Ballistic Gun 1 | . . 1 . Ballistic Cannon . | . . . . Launcher 2 | . . 1 1 Special Weapon . | . . . . Impact Weapon . | . . . . Slashing Weapon . | . . . . Piercing Weapon . | . . . . Special Melee Weapon . | . . . . Unidentified Prototypes 2 | . . . 2 Parts Lost 6 | . . . 6 Power 1 | . . . 1 Propulsion 2 | . . . 2 Utility 1 | . . . 1 Weapon 2 | . . . 2 Highest Loss Streak 4 | . . . 4 Average Slot Usage (%) 70 | . 14 72 82 Engine 11 | . 14 14 9 Leg 20 | . . 28 22 Hover 1 | . . . 2 Device 7 | . . . 11 Storage 1 | . . . 2 Processor 7 | . . . 11 Protection 3 | . . . 5 Energy Gun 2 | . . . 3 Ballistic Gun 4 | . . 14 1 Launcher 11 | . . 14 12 Naked Turns . | . . . . Heaviest Build 14 | 3 3 9 14 Greatest Support 20 | 3 3 20 20 Greatest Overweight (x) . | . . . . Average Overweight (x) . | . . . . Largest Inventory Capacity 4 | 4 4 4 4 Average Capacity 4 | 4 4 4 4 Most Carried 4 | 4 4 3 4 Average Carried 2 | 3 3 . 2 Final Capacity 4 | 4 4 4 4 Final Carried 4 | 4 4 . 4 Class Distribution -------------------- 100% | Mutant Dominant Class ---------------- Mutant | -10/Materials Mutant | -10/Mines Mutant | -9/Materials Resources | -11 -10 -10 -9 ----------- Run | Scr Mat Min Mat Matter Collected 260 | 78 . 37 145 Remotely . | . . . . Salvage Created 319 | . . . 319 Parts 21 | . . . 21 Haulers Intercepted 1 | . . . 1 Recyclers Shooed . | . . . . Parts Field Recycled . | . . . . Retrieved Matter . | . . . . Parts Self-Destructed . | . . . . Prevented . | . . . . Kills | -11 -10 -10 -9 ------- Run | Scr Mat Min Mat Combat Hostiles Destroyed 10 | . . . 10 AOE 10 | . . . 10 Classes Destroyed 8 | . . . 8 Worker 1 | . . . 1 Builder 1 | . . . 1 Hauler 1 | . . . 1 Operator 1 | . . . 1 Watcher 1 | . . . 1 Swarmer 1 | . . . 1 Grunt 6 | . . . 6 Sentry 3 | . . . 3 Best Kill Streak 9 | . . . 9 Combat Bots Only 6 | . . . 6 Max Kills in Single Turn 2 | . . . 2 Gunslinging . | . . . . Exploded 2 | . . . 2 Melee . | . . . . Uniques/NPCs Destroyed . | . . . . Combat | -11 -10 -10 -9 -------- Run | Scr Mat Min Mat Damage Taken 738 | . 9 . 729 Core 207 | . 9 . 198 Absorbed by Shields . | . . . . Core Remaining (%) 98 | 100 . 96 . Volleys Fired 23 | . . . 23 Largest 2 | . . . 2 Hottest 86 | . . . 86 Shots Fired 26 | . . . 26 Gun 2 | . . . 2 Cannon . | . . . . Launcher 24 | . . . 24 Special . | . . . . Kinetic . | . . . . Thermal 2 | . . . 2 Explosive 24 | . . . 24 Electromagnetic . | . . . . Robot Hit Streak 10 | . . . 10 Robot Miss Streak 2 | . . . 2 Penetration Max . | . . . . Secondary Targets . | . . . . Shots Hit Robots 18 | . . . 18 Core Hits 28 | . . . 28 Critical Hits . | . . . . Critical Kills . | . . . . Critical Parts Destroyed . | . . . . Melee Attacks . | . . . . Impact . | . . . . Slashing . | . . . . Piercing . | . . . . Sneak Attacks . | . . . . Combat Hostiles . | . . . . Follow-up Attacks . | . . . . Damage Inflicted 1332 | . . . 1332 Guns 17 | . . . 17 Cannons . | . . . . Explosions 1315 | . . . 1315 Melee . | . . . . Ramming . | . . . . Kinetic . | . . . . Thermal 131 | . . . 131 Explosive 1201 | . . . 1201 Electromagnetic . | . . . . Impact . | . . . . Slashing . | . . . . Piercing . | . . . . Highest Corruption . | . . . . Average Corruption . | . . . . Corruption Purged . | . . . . Overload Shots . | . . . . Overflow Damage 76 | . . . 76 Projectiles . | . . . . Explosions 76 | . . . 76 Melee . | . . . . Knockbacks . | . . . . Impact . | . . . . Kinetic . | . . . . Secondary . | . . . . Self-Inflicted Damage 313 | . . . 313 Shots 7 | . . . 7 Rammed . | . . . . Targets Rammed . | . . . . Kicked . | . . . . Crushed . | . . . . Highest Temperature 18 | . . . 18 Average Temperature 6 | . . . 6 Received Heat Transfer 120 | . . . 120 Siege Activations . | . . . . Robots Corrupted . | . . . . Combat Hostiles . | . . . . Parts Fried . | . . . . Impact Corruptions . | . . . . Robots Melted . | . . . . Combat Hostiles . | . . . . Parts Melted . | . . . . Heat Transferred 87 | . . . 87 Parts Sabotaged . | . . . . Parts Stolen . | . . . . Parts Stripped . | . . . . Power Chain Reactions . | . . . . Missiles Intercepted . | . . . . Alert | -11 -10 -10 -9 ------- Run | Scr Mat Min Mat Peak Influence 395 | . 15 5 395 Average Influence 96 | . 2 5 157 Maximum Alert Level 1 | . . . 1 Low Security (%) 75 | . . . . Level 1 24 | . . . . Level 2 . | . . . . Level 3 . | . . . . Level 4 . | . . . . Level 5 . | . . . . High Security . | . . . . Max Security . | . . . . Squads Dispatched 2 | . 1 . 1 Investigation . | . . . . Extermination . | . . . . Reinforcement 2 | . 1 . 1 Assault . | . . . . Garrison . | . . . . Intercept . | . . . . Construction Impeded . | . . . . Haulers Reinforced . | . . . . Stealth | -11 -10 -10 -9 --------- Run | Scr Mat Min Mat Distress Signals 1 | . 1 . . Communications Jammed . | . . . . Distress Signals . | . . . . Times Spotted 21 | . 3 . 18 Peak Tracking Total 4 | . 4 . 4 Tactical Retreats 2 | . . . 2 Traps | -11 -10 -10 -9 ------- Run | Scr Mat Min Mat Traps Triggered . | . . . . Indirectly . | . . . . Trap Hack Attempts . | . . . . Triggered . | . . . . Disarmed . | . . . . Reprogrammed . | . . . . Reused . | . . . . Traps Extracted . | . . . . Installed . | . . . . Triggered . | . . . . Machines | -11 -10 -10 -9 ---------- Run | Scr Mat Min Mat Machines Disabled 5 | . . . 5 Max in Single Turn 2 | . . . 2 Machines Sabotaged . | . . . . Garrisons Compromised . | . . . . Overloaded Fab Kills . | . . . . Fab Network Shutdowns . | . . . . Hacking | -11 -10 -10 -9 --------- Run | Scr Mat Min Mat Machines Accessed . | . . . . Terminals . | . . . . Fabricators . | . . . . Repair Stations . | . . . . Recycling Units . | . . . . Scanalyzers . | . . . . Garrison Access . | . . . . Total Hacks . | . . . . Successful . | . . . . Failed . | . . . . Catastrophic . | . . . . Database Lockouts . | . . . . Manual . | . . . . Terminals . | . . . . Fabricators . | . . . . Repair Stations . | . . . . Recycling Units . | . . . . Scanalyzers . | . . . . Garrison Access . | . . . . Terminal Hacks . | . . . . Fabricator Hacks . | . . . . Repair Station Hacks . | . . . . Recycling Unit Hacks . | . . . . Scanalyzer . | . . . . Garrison Access Hacks . | . . . . Unauthorized Hacks . | . . . . Terminals . | . . . . Fabricators . | . . . . Repair Stations . | . . . . Recycling Units . | . . . . Scanalyzers . | . . . . Garrison Access . | . . . . Data Cores Recovered . | . . . . Used . | . . . . Hacking Detections . | . . . . Full Trace Events . | . . . . Feedback Events . | . . . . Feedback Blocked . | . . . . Robot Schematics Acquired . | . . . . Robots Built . | . . . . Matter . | . . . . Time . | . . . . Total Robot Build Rating . | . . . . Part Schematics Acquired . | . . . . Parts Built . | . . . . Matter . | . . . . Time . | . . . . Total Part Build Rating . | . . . . Parts Repaired . | . . . . Time . | . . . . Parts Recycled . | . . . . Recycled Matter . | . . . . Retrieved Matter . | . . . . Retrieved Components . | . . . . Parts Scanalyzed . | . . . . Part Schematics Acquired . | . . . . Parts Damaged . | . . . . Bothacking | -11 -10 -10 -9 ------------ Run | Scr Mat Min Mat Used RIF Installer . | . . . . Robots Hacked . | . . . . Non-combat . | . . . . Combat . | . . . . Robot Hacks Applied . | . . . . Relay Couplers Released . | . . . . Robots Rewired . | . . . . Allies Hacked . | . . . . Hacks Repelled . | . . . . Allies | -11 -10 -10 -9 -------- Run | Scr Mat Min Mat Total Allies . | . . . . Largest Group . | . . . . Highest-Rated Group . | . . . . Highest-Rated Ally . | . . . . Total Orders . | . . . . Ally Attacks . | . . . . Total Damage . | . . . . Kills . | . . . . Allies Corrupted . | . . . . Allies Melted . | . . . . Intel | -11 -10 -10 -9 ------- Run | Scr Mat Min Mat Robot Analysis Total . | . . . . Derelict Logs Recovered . | . . . . Drone Launches . | . . . . Drone Recoveries . | . . . . Exploration | -11 -10 -10 -9 ------------- Run | Scr Mat Min Mat Turns Passed 663 | 24 89 151 399 Spaces Moved 614 | 33 174 120 287 Core 207 | 33 174 . . Treads . | . . . . Legs 336 | . . 120 216 Wheels . | . . . . Hover 71 | . . . 71 Flight . | . . . . Fastest Speed 50 | 50 50 120 80 Average Speed 91 | 50 50 120 110 Slowest Speed 120 | 50 50 120 120 Overloaded Moves . | . . . . Propulsion Burnouts . | . . . . Robots Hopped . | . . . . Cave-ins Triggered . | . . . . Exploration Rate (%) 25 | 3 39 33 27 Regions Visited 3 Branch Regions 1 Pre-discovered Areas . | . . . . Known Exits Taken . | . . . . Unknown Exits Taken 3 | 1 1 1 . Scrap Searched 1 | . . 1 . Spaces Dug . | . . . . Terrain Destroyed 225 | . . . 225 Melee . | . . . . Projectile . | . . . . AOE 225 | . . . 225 Actions | -11 -10 -10 -9 --------- Run | Scr Mat Min Mat Total 685 | 40 175 127 343 Wait 12 | . . . 12 Move 611 | 32 173 119 287 Hop . | . . . . Pick Up 20 | 6 1 2 11 Fast Attach 1 | . . . 1 Attach 12 | 1 . 6 5 Detach . | . . . . Swap 2 | . . . 2 Drop 4 | 1 1 . 2 Fire 23 | . . . 23 Melee . | . . . . Ram . | . . . . Kick . | . . . . Crush . | . . . . Escape Stasis . | . . . . Rewire . | . . . . Trap . | . . . . Miscellaneous . | . . . . Route ------- -11/Scrapyard -10/Materials (discovered 2 exits: [*Min x2]) -10/Mines -9/Materials History --------- Turn | Location | Event 10 | -11/Scrapyard | Discovered new exit (range 15) 25 | -11/Scrapyard | Entered Materials 66 | -10/Materials | Discovered new exit (range 5) 94 | -10/Materials | Discovered new exit (range 11) 114 | -10/Materials | Entered Mines 257 | -10/Mines | Discovered new exit (range 7) 265 | -10/Mines | Entered Materials 265 | -9/Materials | Evolved 2 slots: Propulsion x1, Utility x1 312 | -9/Materials | Build established: Mutant 574 | -9/Materials | Lost 4 parts (1p2n1u) 664 | -9/Materials | Self-destructed Last Messages --------------- 00550_ The unstable cave ceiling collapses. 00553_ K-01 Serf collects debris. 00554_ Identified Cld. Ion Engine. 00556_ K-01 Serf collects debris. 00558_ Acquired 1 matter. 00559_ The unstable cave ceiling collapses. 00559_ K-01 Serf collects debris. 00561_ The unstable cave ceiling collapses. 00561_ Beam Rifle crushed. 00561_ K-01 Serf collects debris. 00563_ R-06 Scavenger collects Imp. Medium Laser. 00565_ K-01 Serf collects debris. 00583_ Acquired Com. Battery. 00584_ W-16 Scout destroyed. 00590_ Acquired Com. Battery. 00603_ Acquired 13 matter. 00625_ Dropped Imp. Heat Sink. 00626_ Acquired Cooling System. 00651_ Imp. Medium Laser destroyed. 00652_ S-10 Pest destroyed. Map ----- +----------------------------------------------------+ | | | | | | | | | | | | | | | | | | | | | | | | | | | | | | | | | | | | | ?????????????????????????????????????????????????? | | ???????????????????????######????????????????????? | | ???????????????????????# ???????????????????? | | ???????????????????????# """""??????????????????? | | ???????????????????????#] """""?#????????????????? | | ???????????????????????# """"" #????????????????? | | ???????????????????????# """"" #????????????????? | | ???????????????????????# @""""" #????????????????? | | ???????????????????????# """"" #????????????????? | | ???????????????????????# s""""" #????????????????? | | ??????????????" # ?????# #????????????????? | | ??????????????" ??#####+####????????????????? | | ?????????????"" ### ########???????????? | | ?????????????""[% #????######## | | ????a????????"" #?#### # | | ???????????? ### ##### #?# # # | | ?????????????## #####+#####?# #?# # """# | | ??????????????# # ### ### + R"# | | ?????????????????## """ """ """ + #! """# | | ?????????????????????"" """ """ ### # # | | ????????????????????""" """ """ ###+#### ######## | | ????????????????????""" """ """ # # #??????? | | ????????????????????? # # #??????? | | ?????????????????????#?########## """ # #?###### | | ????????????????????????????????# """ # #? # | | ?????????????????????????#####??# """ # # # | | ?????????????????????????#!! #??# # # """ # | | ?????????????????????????#!! #### + """ # | | ?????????????????????????#!! ! # """ # | | ?????????????????????????#!! * # # | | ?????????????????????????# #+##?###### | | ?????????????????????????#!! ????? | +----------------------------------------------------+ Best States ------------- Heat Dissipation 38 Energy Generation 14 Energy Capacity 580 Matter Stores 168 Matter Capacity 300 Sight Range 16 Terrain Scan Density 10 ECM Strength 1 Weapon Shielding 33 Evasion (%) 50 Item Schematics ----------------- None Robot Schematics ------------------ None Fabricated ------------ Nothing Alien Tech Used ----------------- None Achievements -------------- None Challenges ------------ None Game ------ Seed ScatterThunderPit Manual? 0 Play Time 00:08:26 Cumulative 68.7 hours Start 2019.10.30 @ 20:16:04 End 2019.10.30 @ 20:23:19 Sessions 1 Manual Loads 0 Difficulty Rogue Special Mode None Game No. 109 Rogue 109 Adventurer 0 Explorer 0 Win Type - Total 0 Types 0/0/0/0/0/0/0 Lore% 27 Gallery% 40 Achievement% 29 Wizard Run 0 Options --------- ASCII 0 Keyboard 0 Movement Mouse Keybinds 0 Fullscreen 1 Font 18/SmallcapsGlow Map View 76x50 Tactical HUD 1 Map Filters NONE Filters NONE Steam 1 RUN: cd9cfa0f-00a2-4127-9337-9613025f124e